Cogmind - Beta 14 @@@ ROGUE MODE // 2024.11.26 @ 12:19:59 Player: MarKhan Result: Destroyed by as-67198 with Assembled Heavy Rifle Performance ------------- Evolutions (0) 0 Regions Visited (4) 800 Robots Destroyed (1) 5 Value Destroyed (10) 10 Prototype IDs (0) 0 Alien Tech Used (0) 0 Bonus (300) 300 TOTAL SCORE: 1115 Bonus ------- Aligned with FarCom 300 Cogmind --------- Core Integrity 0/250 Matter 200/300 Energy 98/100 System Corruption 4% Temperature Cool (0) Movement Core (50) Location -9/Mines Parts ------- > --- POWER (1) -------- (None) > --- PROPULSION (2) --- (None) > --- UTILITY (2) ------ (None) > --- WEAPON (2) ------- (None) > --- INVENTORY (5) ---- (None) Peak State ------------ None Favorites ----------- Power None Propulsion None Utility None Weapon None Build | -11 -10 -10 -10 -9 ------- Run | Yrd Mat Min Exi Min Slots Evolved . | . . . . . Power . | . . . . . Propulsion . | . . . . . Utility . | . . . . . Weapon . | . . . . . Parts Attached . | . . . . . Power . | . . . . . Engine . | . . . . . Core . | . . . . . Reactor . | . . . . . Propulsion . | . . . . . Treads . | . . . . . Leg . | . . . . . Wheel . | . . . . . Hover . | . . . . . Flight . | . . . . . Utility . | . . . . . Device . | . . . . . Storage . | . . . . . Processor . | . . . . . Hackware . | . . . . . Protection . | . . . . . Artifact . | . . . . . Weapon . | . . . . . Energy Gun . | . . . . . Energy Cannon . | . . . . . Ballistic Gun . | . . . . . Ballistic Cannon . | . . . . . Launcher . | . . . . . Special Weapon . | . . . . . Impact Weapon . | . . . . . Slashing Weapon . | . . . . . Piercing Weapon . | . . . . . Special Melee Weapon . | . . . . . Unidentified Prototypes . | . . . . . Parts Lost . | . . . . . Power . | . . . . . Propulsion . | . . . . . Utility . | . . . . . Weapon . | . . . . . Highest Loss Streak . | . . . . . To Critical Strikes . | . . . . . Average Slot Usage (%) . | . . . . . Peak Build Rating . | . . . . . Average Rating . | . . . . . On Entrance . | . . . . . Naked Turns 368 | . 52 179 79 58 Heaviest Build . | . . . . . Greatest Support 3 | 3 3 3 3 3 Greatest Overweight (x) . | . . . . . Average Overweight (x) . | . . . . . Largest Inventory Capacity 5 | 5 5 5 5 5 Average Capacity 5 | 5 5 5 5 5 Most Carried . | . . . . . Average Carried . | . . . . . Final Capacity 5 | 5 5 5 5 5 Final Carried . | . . . . . Class Distribution -------------------- 100% | Mutant Dominant Class ---------------- Mutant | -10/Materials Mutant | -10/Mines Mutant | -10/Exiles Mutant | -9/Mines Resources | -11 -10 -10 -10 -9 ----------- Run | Yrd Mat Min Exi Min Matter Collected 78 | . . 20 . 58 Remotely . | . . . . . Salvage Created 20 | . . 20 . . Parts 3 | . . 3 . . Haulers Intercepted . | . . . . . Recyclers Shooed 1 | . . 1 . . Parts Field Recycled . | . . . . . Retrieved Matter . | . . . . . Parts Self-Destructed . | . . . . . Prevented . | . . . . . Kills | -11 -10 -10 -10 -9 ------- Run | Yrd Mat Min Exi Min Combat Hostiles Destroyed 1 | . . 1 . . Melee 1 | . . 1 . . Classes Destroyed 1 | . . 1 . . Swarmer 1 | . . 1 . . Best Kill Streak 1 | . . 1 . . Combat Bots Only 1 | . . 1 . . Max Kills in Single Turn 1 | . . 1 . . Gunslinging . | . . . . . Exploded . | . . . . . Melee 1 | . . 1 . . Uniques/NPCs Destroyed . | . . . . . Combat | -11 -10 -10 -10 -9 -------- Run | Yrd Mat Min Exi Min Hostile Shots Fired 32 | . 4 27 . 1 Missed 10 | . 2 8 . . Damage Taken 256 | . 20 225 . 11 Core 256 | . 20 225 . 11 Absorbed by Shields . | . . . . . Core Remaining (%) 100 | 100 . . . . Volleys Fired . | . . . . . Largest . | . . . . . Hottest . | . . . . . Shots Fired . | . . . . . Gun . | . . . . . Cannon . | . . . . . Launcher . | . . . . . Special . | . . . . . Kinetic . | . . . . . Thermal . | . . . . . Explosive . | . . . . . Electromagnetic . | . . . . . Robot Hit Streak . | . . . . . Robot Miss Streak . | . . . . . Penetration Max . | . . . . . Secondary Targets . | . . . . . Shots Hit Robots . | . . . . . Core Hits 1 | . . 1 . . Critical Kills . | . . . . . Critical Parts Destroyed . | . . . . . Critical Strikes . | . . . . . Melee Attacks . | . . . . . Impact . | . . . . . Slashing . | . . . . . Piercing . | . . . . . Sneak Attacks . | . . . . . Combat Hostiles . | . . . . . Follow-up Attacks . | . . . . . Damage Inflicted 63 | . . 63 . . Guns . | . . . . . Cannons . | . . . . . Explosions . | . . . . . Melee . | . . . . . Ramming 63 | . . 63 . . Kinetic . | . . . . . Thermal . | . . . . . Explosive . | . . . . . Electromagnetic . | . . . . . Impact . | . . . . . Slashing . | . . . . . Piercing . | . . . . . Highest Corruption 4 | . . 4 4 4 Average Corruption 3 | . . 3 4 4 Corruption Purged . | . . . . . Corruption Blocked . | . . . . . Effects 10 | . . 6 3 1 Message Errors 2 | . . 2 . . Matter Fused 4 | . . 2 2 . Heat Flow Errors 1 | . . 1 . . Energy Discharges 1 | . . . . 1 Data Loss (minor) 2 | . . 1 1 . Overload Shots . | . . . . . Overflow Damage . | . . . . . Projectiles . | . . . . . Explosions . | . . . . . Melee . | . . . . . Knockbacks . | . . . . . Impact . | . . . . . Kinetic . | . . . . . Secondary . | . . . . . Self-Inflicted Damage 27 | . . 27 . . Shots . | . . . . . Rammed 16 | . . 16 . . Targets Rammed 16 | . . 16 . . Kicked . | . . . . . Crushed . | . . . . . Highest Temperature 228 | . . 228 . . Average Temperature 115 | . . 115 . . Received Heat Transfer 39 | . 12 27 . . Siege Activations . | . . . . . Robots Corrupted . | . . . . . Combat Hostiles . | . . . . . Parts Fried . | . . . . . Impact Corruptions . | . . . . . Robots Melted . | . . . . . Combat Hostiles . | . . . . . Parts Melted . | . . . . . Heat Transferred . | . . . . . Parts Sabotaged . | . . . . . Parts Stolen . | . . . . . Parts Stripped . | . . . . . Power Chain Reactions . | . . . . . Alert | -11 -10 -10 -10 -9 ------- Run | Yrd Mat Min Exi Min Peak Influence 113 | . 8 113 . . Initial 3 | . . 3 . . Average 45 | . 4 74 . . Maximum Alert Level . | . . . . . Low Security (%) 100 | 100 100 100 . 100 Level 1 . | . . . . . Level 2 . | . . . . . Level 3 . | . . . . . Level 4 . | . . . . . Level 5 . | . . . . . High Security . | . . . . . Max Security . | . . . . . Squads Dispatched . | . . . . . Investigation . | . . . . . Extermination . | . . . . . Reinforcement . | . . . . . Assault . | . . . . . Garrison . | . . . . . Intercept . | . . . . . Searches Triggered . | . . . . . Construction Impeded . | . . . . . Haulers Reinforced . | . . . . . Active Scanning Responses . | . . . . . Cargo Convoy Interrupts . | . . . . . Stealth | -11 -10 -10 -10 -9 --------- Run | Yrd Mat Min Exi Min Distress Signals 1 | . 1 . . . Communications Jammed . | . . . . . Distress Signals . | . . . . . Times Spotted 19 | . 2 9 . 8 Peak Tracking Total 6 | . 2 5 . 6 Tactical Retreats 2 | . . 2 . . Traps | -11 -10 -10 -10 -9 ------- Run | Yrd Mat Min Exi Min Traps Triggered . | . . . . . Indirectly . | . . . . . Trap Hack Attempts . | . . . . . Triggered . | . . . . . Disarmed . | . . . . . Reprogrammed . | . . . . . Reused . | . . . . . Traps Extracted . | . . . . . Installed . | . . . . . Triggered . | . . . . . Machines | -11 -10 -10 -10 -9 ---------- Run | Yrd Mat Min Exi Min Machines Disabled . | . . . . . Max in Single Turn . | . . . . . Machines Repaired . | . . . . . Machines Dismantled . | . . . . . Machines Sabotaged . | . . . . . Overloaded Fab Kills . | . . . . . Hacking | -11 -10 -10 -10 -9 --------- Run | Yrd Mat Min Exi Min Machines Accessed 3 | . 2 . 1 . Terminals 2 | . 2 . . . Fabricators . | . . . . . Repair Stations . | . . . . . Recycling Units . | . . . . . Scanalyzers . | . . . . . Garrison Access . | . . . . . Total Hacks 10 | . 9 . 1 . Successful 7 | . 6 . 1 . Failed 3 | . 3 . . . Catastrophic 1 | . 1 . . . Database Lockouts . | . . . . . Manual 8 | . 8 . . . Terminals 9 | . 9 . . . Fabricators . | . . . . . Repair Stations . | . . . . . Recycling Units . | . . . . . Scanalyzers . | . . . . . Garrison Access . | . . . . . Terminal Hacks 2 | . 1 . 1 . Record 1 | . . . 1 . Zone Layout 1 | . 1 . . . Fabricator Hacks . | . . . . . Repair Station Hacks . | . . . . . Recycling Unit Hacks . | . . . . . Scanalyzer . | . . . . . Garrison Access Hacks . | . . . . . Unauthorized Hacks 5 | . 5 . . . Terminals 5 | . 5 . . . Botnet 2 | . 2 . . . Operators 1 | . 1 . . . Skim 2 | . 2 . . . Fabricators . | . . . . . Repair Stations . | . . . . . Recycling Units . | . . . . . Scanalyzers . | . . . . . Garrison Access . | . . . . . Data Cores Recovered . | . . . . . Used . | . . . . . Hacking Detections 2 | . 2 . . . Full Trace Events . | . . . . . Feedback Events . | . . . . . Feedback Blocked . | . . . . . Robot Schematics Acquired . | . . . . . Robots Built . | . . . . . Authchips . | . . . . . Time . | . . . . . Total Robot Build Rating . | . . . . . Part Schematics Acquired . | . . . . . Parts Built . | . . . . . Authchips . | . . . . . Time . | . . . . . Total Part Build Rating . | . . . . . Parts Repaired . | . . . . . Time . | . . . . . Parts Recycled . | . . . . . Recycled Matter . | . . . . . Retrieved Matter . | . . . . . Retrieved Components . | . . . . . Parts Scanalyzed . | . . . . . Part Schematics Acquired . | . . . . . Parts Damaged . | . . . . . Bothacking | -11 -10 -10 -10 -9 ------------ Run | Yrd Mat Min Exi Min Used RIF Installer . | . . . . . Robots Hacked . | . . . . . Non-combat . | . . . . . Combat . | . . . . . Robot Hacks Applied . | . . . . . Relay Couplers Released . | . . . . . Fabnet Peak Effective % . | . . . . . Robots Rewired . | . . . . . Allies Hacked . | . . . . . Hacks Repelled . | . . . . . Allies | -11 -10 -10 -10 -9 -------- Run | Yrd Mat Min Exi Min Total Allies 3 | . . . . 3 Largest Group 3 | . . . . 3 Highest-Rated Group 40 | . . . . 40 Highest-Rated Ally 16 | . . . . 16 Total Orders . | . . . . . Ally Attacks 3 | . . . . 3 Total Damage 38 | . . . . 38 Kills . | . . . . . Allies Corrupted . | . . . . . Allies Melted . | . . . . . Intel | -11 -10 -10 -10 -9 ------- Run | Yrd Mat Min Exi Min Robot Analysis Total . | . . . . . Derelict Logs Recovered 3 | . . 2 . 1 Drone Launches . | . . . . . Drone Recoveries . | . . . . . Exploration | -11 -10 -10 -10 -9 ------------- Run | Yrd Mat Min Exi Min Turns Passed 377 | 9 52 179 79 58 Spaces Moved 721 | 18 103 326 158 116 Core 721 | 18 103 326 158 116 Treads . | . . . . . Legs . | . . . . . Wheels . | . . . . . Hover . | . . . . . Flight . | . . . . . Fastest Speed 50 | 50 50 50 50 50 Average Speed 50 | 50 50 50 50 50 Slowest Speed 50 | 50 50 50 50 50 Overloaded Moves . | . . . . . Propulsion Burnouts . | . . . . . Robots Hopped . | . . . . . Cave-ins Triggered . | . . . . . Exploration Rate (%) 38 | 3 36 74 55 24 Regions Visited 4 Branch Regions 3 Pre-discovered Areas 2 | . . 1 1 . Known Exits Taken . | . . . . . Unknown Exits Taken 4 | 1 1 1 1 . Scrap Searched 1 | . . . . 1 Spaces Dug . | . . . . . Terrain Destroyed . | . . . . . Melee . | . . . . . Projectile . | . . . . . AOE . | . . . . . Terrain Rammed . | . . . . . Walls Destroyed . | . . . . . Machines Disabled . | . . . . . Actions | -11 -10 -10 -10 -9 --------- Run | Yrd Mat Min Exi Min Total 733 | 17 102 341 157 116 Wait . | . . . . . Move 717 | 17 102 325 157 116 Hop . | . . . . . Pick Up . | . . . . . Fast Attach . | . . . . . Attach . | . . . . . Detach . | . . . . . Swap . | . . . . . Drop . | . . . . . Fire . | . . . . . Melee . | . . . . . Ram 16 | . . 16 . . Kick . | . . . . . Crush . | . . . . . Escape Stasis . | . . . . . Rewire . | . . . . . Trap . | . . . . . Miscellaneous . | . . . . . Route ------- -11/Scrapyard -10/Materials -10/Mines (discovered 3 exits: [*Mat x2] / *Exi) -10/Exiles -9/Mines History --------- Turn | Location | Event 2 | -11/Scrapyard | Discovered new exit (range 16) 10 | -11/Scrapyard | Entered Materials 45 | -10/Materials | Discovered new exit (range 13) 62 | -10/Materials | Entered Mines 82 | -10/Mines | Core integrity fell below 50% 90 | -10/Mines | Core integrity fell below 20% 119 | -10/Mines | Discovered new exit (range 12) 140 | -10/Mines | Discovered new exit (range 6) 140 | -10/Mines | Learned 2 Materials zone layouts 171 | -10/Mines | A weapon hastily lodged in a ceiling crevice suddenly fell to the ground 181 | -10/Mines | Received a Rocket Launcher from a helpful Derelict 239 | -10/Mines | Deemed a non-threat by the Exiles lab entrance 239 | -10/Mines | Discovered new exit (range 5) 241 | -10/Mines | Entered Exiles 254 | -10/Exiles | Met 8R-AWN 262 | -10/Exiles | Met EX-HEX 277 | -10/Exiles | Met EX-BIN 283 | -10/Exiles | Aligned with FarCom system 283 | -10/Exiles | Given EX-Vault access code 297 | -10/Exiles | Met EX-DEC 300 | -10/Exiles | Learned location of Zion (-6) 305 | -10/Exiles | Build established: Mutant 315 | -10/Exiles | Discovered new exit (range 11) 320 | -10/Exiles | Entered Mines 321 | -9/Mines | Assembled infested the area 329 | -9/Mines | Assisted by bots powering up and referring to "LRC-V3" 354 | -9/Mines | Learned Materials stockpile data 378 | -9/Mines | Destroyed by as-67198 with Assembled Heavy Rifle Last Messages --------------- dispatching Demolisher response squad. 00329_ Trooper 2a: "Hello LRC-V3. What is your command?" 00329_ Mercenary 2a: "Hello LRC-V3. What is your command?" 00329_ Trooper 2b: "Hello LRC-V3. What is your command?" 00339_ Searching scrap... 00339_ Found Com. Wheel. 00339_ Found Hover Unit. 00339_ Found Lgt. EM Pulse Cannon. 00339_ Found 58 Matter. 00340_ Acquired 58 matter. 00354_ Acquired derelict log, extracted data. Data stored: Materials stockpile data. 00357_ K-01 Serf cleans the Laser Drill. 00370_ System corrupted: Energy discharge (-21). 00374_ C-30 ARC bursts open, deploying its payload. 00374_ D-53 Grenadier unfolds itself. Map ----- +----------------------------------------------------+ | ?????????????????????????????????????????????????? | | ?????????????????????????????????????????????????? | | ?????????????????????????????????????????????????? | | ?????????????????????????????????????????????????? | | ??????????????????????????????????????????????#### | | ??????????????????????????????????????????????# | | ??????????????????????????????????????????????# "" | | ?????????????????????????????????????????????## "" | | ?????????????????????????????????????????????? "" | | ?????????#????????????????????????????????????# | | ????????? ##?????????????????###??????????????# | | ????????? ????????????????? #???????????????# | | ????????? ?????????????????# #???????????# ### | | ????????? ?????????????????# #???????????# | | ????????? ?????????????????# #???????????##### | | ###?????? ?????????????????# ####????????????# | | ##?????# #??????????######?# #????????????# | | #?????# #???#####??# ###### #????????????# | | #?????# #???# #??# ###a############## | | "" #?????# #???# #??# a d "% | | "" #?????# #???# ##??# ########### ##### | | "" ##????# #??## ##?## ##?????????# #???# | | ###### #### ##?# ##??????????# #???# | | aa ### #???????????# #???# | | # #???????????# #???### | | # ####### @ #???????????# #?????? | | ## ##?????# ##??????????# #?????? | | ?####??????## ## ##?????????# #?????? | | ????????????### #### ########### #?????? | | ??????????????####??##### =] = #?????? | | ????????????????????????## ##############?????? | | ?????????????????????????######??????????????????? | | ?????????????????????????????????????????????????? | | ?????????????????????????????????????????????????? | | | | | | | | | | | | | | | | | | | | | | | | | | | | | | | | | +----------------------------------------------------+ Best States ------------- Heat Dissipation 25 Energy Generation 5 Energy Capacity 100 Matter Stores 200 Matter Capacity 300 Sight Range 16 Terrain Scan Density 10 Evasion (%) 50 Item Schematics ----------------- None Robot Schematics ------------------ None Fabricated ------------ Nothing Alien Tech Used ----------------- None Achievements -------------- None Challenges ------------ None Game ------ Seed AlphaThermicInjector Manual? 0 Play Time 00:04:59 Cumulative 142.0 hours Start 2024.11.26 @ 12:15:39 End 2024.11.26 @ 12:19:59 Sessions 1 Manual Loads 0 Difficulty Rogue Special Mode None Game No. 121 Rogue 121 Adventurer 0 Explorer 0 Win Type - Total 3 Types 3/0/0/0/0/0/0/0/0 Lore% 53 Gallery% 58 Achievement% 54 Wizard Run 0 Options --------- Layout 1 ASCII 0 Keyboard 1 Movement Arrows Keybinds 0 Fullscreen 0 Font 20/Smallcaps Map View 50x35 Zoom Use 0% Tactical HUD 1 Map Filters NONE Filters NONE Steam 1 RUN: 641ffbf1-d4ec-406d-b98d-c2a298185889